[Event "Titled Tuesday Blitz June 20 Early 2023"]
[White "Bacrot, Etienne"]
[Black "Nakamura, Hikaru"]
[WhiteFideId "605506"]
[BlackFideId "2016192"]
[WhiteElo "2672"]
[BlackElo "2874"]
[Result "0-1"]
[Round "9"]
[TimeControl "180+2"]
[Date "2023.06.20"]
[WhiteClock "0:00:00"]
[BlackClock "0:00:14"]
[Board "10"]

1. e4 {[%clk 0:03:00]}  c5 {[%clk 0:02:59]} 2. Nf3 {[%clk 0:03:01]}  Nc6 {[%clk 0:02:59]} 3. Bb5 {[%clk 0:03:00]}  g6 {[%clk 0:02:59]} 4. O-O {[%clk 0:03:00]}  Bg7 {[%clk 0:02:59]} 5. Re1 {[%clk 0:03:00]}  e5 {[%clk 0:02:59]} 6. b4 {[%clk 0:03:01]}  cxb4 {[%clk 0:02:55]} 7. a3 {[%clk 0:03:01]}  Nge7 {[%clk 0:02:55]} 8. axb4 {[%clk 0:03:00]}  O-O {[%clk 0:02:55]} 9. Ba3 {[%clk 0:02:53]}  d6 {[%clk 0:02:53]} 10. Bc4 {[%clk 0:02:44]}  Bg4 {[%clk 0:02:27]} 11. h3 {[%clk 0:02:29]}  Bxf3 {[%clk 0:02:23]} 12. Qxf3 {[%clk 0:02:28]}  Kh8 {[%clk 0:02:22]} 13. c3 {[%clk 0:02:24]}  f5 {[%clk 0:02:21]} 14. b5 {[%clk 0:02:17]}  fxe4 {[%clk 0:01:58]} 15. Qxe4 {[%clk 0:02:15]}  Na5 {[%clk 0:01:51]} 16. Ba2 {[%clk 0:02:10]}  Rf4 {[%clk 0:01:46]} 17. Qe2 {[%clk 0:01:55]}  Nf5 {[%clk 0:01:40]} 18. Bb4 {[%clk 0:01:42]}  b6 {[%clk 0:01:22]} 19. Bd5 {[%clk 0:01:38]}  Rc8 {[%clk 0:01:22]} 20. g3 {[%clk 0:01:19]}  Qg5 {[%clk 0:01:13]} 21. Bxa5 {[%clk 0:01:00]}  Nxg3 {[%clk 0:01:05]} 22. fxg3 {[%clk 0:00:56]}  Qxg3+ {[%clk 0:01:02]} 23. Bg2 {[%clk 0:00:56]}  bxa5 {[%clk 0:00:59]} 24. Qe3 {[%clk 0:00:53]}  Qh4 {[%clk 0:00:57]} 25. Rxa5 {[%clk 0:00:47]}  Bh6 {[%clk 0:00:58]} 26. Qe2 {[%clk 0:00:36]}  Rcf8 {[%clk 0:00:52]} 27. Rd1 {[%clk 0:00:28]}  Qg3 {[%clk 0:00:39]} 28. Rxa7 {[%clk 0:00:24]}  Rf2 {[%clk 0:00:25]} 29. Qe4 {[%clk 0:00:23]}  R8f3 {[%clk 0:00:18]} 30. Ra8+ {[%clk 0:00:22]}  Kg7 {[%clk 0:00:17]} 31. Ra7+ {[%clk 0:00:12]}  Kf6 {[%clk 0:00:14]} 32. Qxf3+ {[%clk 0:00:04]}  Rxf3 {[%clk 0:00:15]} 33. Rf1 {[%clk 0:00:04]}  Rxf1+ {[%clk 0:00:15]} 34. Kxf1 {[%clk 0:00:04]}  Qd3+ {[%clk 0:00:15]} 35. Kf2 {[%clk 0:00:04]}  Qxb1 {[%clk 0:00:16]} 36. Bd5 {[%clk 0:00:03]}  Bxd2 {[%clk 0:00:15]} 37. h4 {[%clk 0:00:03]}  Be3+ {[%clk 0:00:13]} 38. Kxe3 {[%clk 0:00:03]}  Qg1+ {[%clk 0:00:13]} 39. Ke4 {[%clk 0:00:03]}  Qxa7 {[%clk 0:00:14]} 40. b6 {[%clk 0:00:00]}  Qxb6 {[%clk 0:00:14]} 0-1


[Site "https://www.chess.com"]

[Event "Titled Tuesday Blitz June 20 Early 2023"]
[White "Bluebaum, Matthias"]
[Black "Bharath Subramaniyam H"]
[WhiteFideId "24651516"]
[BlackFideId "46634827"]
[WhiteElo "2639"]
[BlackElo "2400"]
[Result "1-0"]
[Round "9"]
[TimeControl "180+2"]
[Date "2023.06.20"]
[WhiteClock "0:01:12"]
[BlackClock "0:00:06"]
[Board "11"]

1. d4 {[%clk 0:03:00]}  Nf6 {[%clk 0:02:56]} 2. c4 {[%clk 0:03:01]}  e6 {[%clk 0:02:56]} 3. Nc3 {[%clk 0:03:01]}  Bb4 {[%clk 0:02:56]} 4. e3 {[%clk 0:03:02]}  d5 {[%clk 0:02:55]} 5. Bd2 {[%clk 0:03:02]}  O-O {[%clk 0:02:54]} 6. Nf3 {[%clk 0:03:03]}  b6 {[%clk 0:02:52]} 7. cxd5 {[%clk 0:03:03]}  exd5 {[%clk 0:02:52]} 8. Rc1 {[%clk 0:03:04]}  Bb7 {[%clk 0:02:51]} 9. Bd3 {[%clk 0:03:03]}  a6 {[%clk 0:02:51]} 10. O-O {[%clk 0:03:03]}  Bd6 {[%clk 0:02:51]} 11. Ne5 {[%clk 0:03:03]}  c5 {[%clk 0:02:49]} 12. f4 {[%clk 0:03:03]}  Nc6 {[%clk 0:02:49]} 13. Ng4 {[%clk 0:03:04]}  Be7 {[%clk 0:02:40]} 14. Nxf6+ {[%clk 0:03:03]}  Bxf6 {[%clk 0:02:41]} 15. dxc5 {[%clk 0:03:04]}  bxc5 {[%clk 0:02:38]} 16. b3 {[%clk 0:03:05]}  Rc8 {[%clk 0:02:29]} 17. Na4 {[%clk 0:02:58]}  Nb4 {[%clk 0:01:38]} 18. Bb1 {[%clk 0:02:57]}  a5 {[%clk 0:01:08]} 19. Nxc5 {[%clk 0:02:52]}  Ba8 {[%clk 0:01:04]} 20. a3 {[%clk 0:02:46]}  Nc6 {[%clk 0:01:03]} 21. Qg4 {[%clk 0:02:38]}  Ne7 {[%clk 0:00:58]} 22. Nd7 {[%clk 0:02:34]}  Bb2 {[%clk 0:00:40]} 23. Rxc8 {[%clk 0:02:13]}  Qxc8 {[%clk 0:00:41]} 24. Qh3 {[%clk 0:02:14]}  g6 {[%clk 0:00:40]} 25. Nxf8 {[%clk 0:02:13]}  Qxf8 {[%clk 0:00:41]} 26. Bxa5 {[%clk 0:02:06]}  Bxa3 {[%clk 0:00:41]} 27. Qd7 {[%clk 0:02:06]}  Bc5 {[%clk 0:00:38]} 28. Re1 {[%clk 0:01:59]}  Bc6 {[%clk 0:00:37]} 29. Qd8 {[%clk 0:01:59]}  d4 {[%clk 0:00:31]} 30. exd4 {[%clk 0:01:47]}  Qxd8 {[%clk 0:00:30]} 31. Bxd8 {[%clk 0:01:48]}  Bxd4+ {[%clk 0:00:31]} 32. Kh1 {[%clk 0:01:49]}  Nc8 {[%clk 0:00:21]} 33. Be4 {[%clk 0:01:42]}  Bb5 {[%clk 0:00:20]} 34. Rd1 {[%clk 0:01:39]}  Be3 {[%clk 0:00:20]} 35. Bf6 {[%clk 0:01:38]}  Bb6 {[%clk 0:00:17]} 36. Bb7 {[%clk 0:01:35]}  Na7 {[%clk 0:00:16]} 37. Bd4 {[%clk 0:01:31]}  Bxd4 {[%clk 0:00:15]} 38. Rxd4 {[%clk 0:01:32]}  Kf8 {[%clk 0:00:15]} 39. Rd1 {[%clk 0:01:13]}  Be8 {[%clk 0:00:12]} 40. b4 {[%clk 0:01:10]}  Ke7 {[%clk 0:00:11]} 41. Kg1 {[%clk 0:01:11]}  Nb5 {[%clk 0:00:09]} 42. Re1+ {[%clk 0:01:11]}  Kd8 {[%clk 0:00:06]} 43. Rxe8+ {[%clk 0:01:12]} 1-0


[Site "https://www.chess.com"]

[Event "Titled Tuesday Blitz June 20 Early 2023"]
[White "Svane, Rasmus"]
[Black "Ilamparthi A R"]
[WhiteFideId "4657101"]
[BlackFideId "45015775"]
[WhiteElo "2601"]
[BlackElo "2348"]
[Result "0-1"]
[Round "9"]
[TimeControl "180+2"]
[Date "2023.06.20"]
[WhiteClock "0:00:11"]
[BlackClock "0:00:17"]
[Board "14"]

1. Nf3 {[%clk 0:03:00]}  Nf6 {[%clk 0:02:58]} 2. g3 {[%clk 0:03:01]}  g6 {[%clk 0:02:58]} 3. Bg2 {[%clk 0:03:02]}  Bg7 {[%clk 0:02:59]} 4. O-O {[%clk 0:03:02]}  c5 {[%clk 0:02:59]} 5. c4 {[%clk 0:02:55]}  O-O {[%clk 0:02:57]} 6. Nc3 {[%clk 0:02:55]}  Nc6 {[%clk 0:02:57]} 7. d4 {[%clk 0:02:54]}  d6 {[%clk 0:02:57]} 8. dxc5 {[%clk 0:02:54]}  dxc5 {[%clk 0:02:57]} 9. Be3 {[%clk 0:02:55]}  Be6 {[%clk 0:02:56]} 10. Qa4 {[%clk 0:02:54]}  Nd4 {[%clk 0:02:37]} 11. Rfd1 {[%clk 0:02:43]}  Bd7 {[%clk 0:02:30]} 12. Qa3 {[%clk 0:02:20]}  Nc2 {[%clk 0:02:29]} 13. Qxc5 {[%clk 0:02:20]}  b6 {[%clk 0:02:16]} 14. Qg5 {[%clk 0:01:57]}  Nxa1 {[%clk 0:02:15]} 15. Rxa1 {[%clk 0:01:56]}  Rc8 {[%clk 0:02:15]} 16. Rd1 {[%clk 0:01:50]}  Qe8 {[%clk 0:01:50]} 17. Ne5 {[%clk 0:01:33]}  Be6 {[%clk 0:01:44]} 18. Qh4 {[%clk 0:01:20]}  Nh5 {[%clk 0:01:19]} 19. Bd4 {[%clk 0:01:07]}  f6 {[%clk 0:01:01]} 20. Nd3 {[%clk 0:00:57]}  Rxc4 {[%clk 0:00:38]} 21. b3 {[%clk 0:00:52]}  Rc8 {[%clk 0:00:33]} 22. g4 {[%clk 0:00:51]}  g5 {[%clk 0:00:21]} 23. Qxh5 {[%clk 0:00:50]}  Qd7 {[%clk 0:00:21]} 24. Ne5 {[%clk 0:00:24]}  fxe5 {[%clk 0:00:18]} 25. Bxe5 {[%clk 0:00:25]}  Qxd1+ {[%clk 0:00:15]} 26. Nxd1 {[%clk 0:00:24]}  Bxe5 {[%clk 0:00:12]} 27. Qxg5+ {[%clk 0:00:25]}  Bg7 {[%clk 0:00:13]} 28. Be4 {[%clk 0:00:21]}  Rf6 {[%clk 0:00:10]} 29. Ne3 {[%clk 0:00:21]}  Rc5 {[%clk 0:00:10]} 30. Nf5 {[%clk 0:00:19]}  Bxf5 {[%clk 0:00:08]} 31. gxf5 {[%clk 0:00:20]}  Rg6 {[%clk 0:00:08]} 32. Qxg6 {[%clk 0:00:11]}  hxg6 {[%clk 0:00:08]} 33. fxg6 {[%clk 0:00:12]}  Rc1+ {[%clk 0:00:08]} 34. Kg2 {[%clk 0:00:12]}  Ra1 {[%clk 0:00:09]} 35. a4 {[%clk 0:00:12]}  e6 {[%clk 0:00:09]} 36. h4 {[%clk 0:00:11]}  Ra3 {[%clk 0:00:09]} 37. Bc2 {[%clk 0:00:11]}  Ra2 {[%clk 0:00:10]} 38. Bd3 {[%clk 0:00:11]}  Kf8 {[%clk 0:00:10]} 39. Kg3 {[%clk 0:00:10]}  Ke7 {[%clk 0:00:10]} 40. Kg4 {[%clk 0:00:10]}  Kf6 {[%clk 0:00:11]} 41. h5 {[%clk 0:00:11]}  Rb2 {[%clk 0:00:11]} 42. Bc4 {[%clk 0:00:11]}  Bh6 {[%clk 0:00:11]} 43. f4 {[%clk 0:00:10]}  Rd2 {[%clk 0:00:11]} 44. e4 {[%clk 0:00:09]}  Rg2+ {[%clk 0:00:11]} 45. Kf3 {[%clk 0:00:09]}  Rg1 {[%clk 0:00:12]} 46. e5+ {[%clk 0:00:10]}  Ke7 {[%clk 0:00:12]} 47. Ke4 {[%clk 0:00:09]}  Re1+ {[%clk 0:00:11]} 48. Kf3 {[%clk 0:00:10]}  Rd1 {[%clk 0:00:12]} 49. Ke4 {[%clk 0:00:09]}  Rh1 {[%clk 0:00:12]} 50. Bxe6 {[%clk 0:00:07]}  Kxe6 {[%clk 0:00:11]} 51. f5+ {[%clk 0:00:07]}  Ke7 {[%clk 0:00:12]} 52. Kd5 {[%clk 0:00:07]}  Rd1+ {[%clk 0:00:11]} 53. Ke4 {[%clk 0:00:07]}  Re1+ {[%clk 0:00:12]} 54. Kd4 {[%clk 0:00:08]}  Bg7 {[%clk 0:00:12]} 55. f6+ {[%clk 0:00:06]}  Bxf6 {[%clk 0:00:13]} 56. exf6+ {[%clk 0:00:07]}  Kxf6 {[%clk 0:00:14]} 57. Kd5 {[%clk 0:00:08]}  Re5+ {[%clk 0:00:14]} 58. Kc6 {[%clk 0:00:08]}  Rxh5 {[%clk 0:00:14]} 59. Kb7 {[%clk 0:00:08]}  a5 {[%clk 0:00:12]} 60. Kxb6 {[%clk 0:00:08]}  Kxg6 {[%clk 0:00:13]} 61. Kc6 {[%clk 0:00:02]}  Kf6 {[%clk 0:00:13]} 62. Kd6 {[%clk 0:00:03]}  Rh3 {[%clk 0:00:13]} 63. Kc5 {[%clk 0:00:03]}  Rxb3 {[%clk 0:00:14]} 64. Kc4 {[%clk 0:00:04]}  Rb4+ {[%clk 0:00:14]} 65. Kc3 {[%clk 0:00:05]}  Rxa4 {[%clk 0:00:14]} 66. Kc2 {[%clk 0:00:06]}  Rb4 {[%clk 0:00:15]} 67. Kd3 {[%clk 0:00:07]}  a4 {[%clk 0:00:15]} 68. Kc3 {[%clk 0:00:08]}  Rb8 {[%clk 0:00:16]} 69. Kd3 {[%clk 0:00:09]}  a3 {[%clk 0:00:16]} 70. Kc3 {[%clk 0:00:10]}  a2 {[%clk 0:00:17]} 71. Kd3 {[%clk 0:00:11]} 0-1


[Site "https://www.chess.com"]

[Event "Titled Tuesday Blitz June 20 Early 2023"]
[White "Terry, Renato"]
[Black "Gadimbayli, Abdulla"]
[WhiteFideId "3803457"]
[BlackFideId "13404938"]
[WhiteElo "2575"]
[BlackElo "2386"]
[Result "0-1"]
[Round "9"]
[TimeControl "180+2"]
[Date "2023.06.20"]
[WhiteClock "0:00:00"]
[BlackClock "0:00:06"]
[Board "15"]

1. d4 {[%clk 0:03:00]}  d5 {[%clk 0:02:54]} 2. Nf3 {[%clk 0:03:00]}  Nc6 {[%clk 0:02:54]} 3. Bf4 {[%clk 0:02:59]}  Nf6 {[%clk 0:02:54]} 4. e3 {[%clk 0:02:59]}  Nh5 {[%clk 0:02:54]} 5. c3 {[%clk 0:02:53]}  Nxf4 {[%clk 0:02:54]} 6. exf4 {[%clk 0:02:54]}  Bg4 {[%clk 0:02:55]} 7. Bd3 {[%clk 0:02:49]}  e6 {[%clk 0:02:54]} 8. h3 {[%clk 0:02:49]}  Bxf3 {[%clk 0:02:54]} 9. Qxf3 {[%clk 0:02:50]}  g6 {[%clk 0:02:53]} 10. Nd2 {[%clk 0:02:45]}  Bd6 {[%clk 0:02:53]} 11. h4 {[%clk 0:02:39]}  h5 {[%clk 0:02:53]} 12. g3 {[%clk 0:02:38]}  Ne7 {[%clk 0:02:53]} 13. Qe2 {[%clk 0:02:25]}  c5 {[%clk 0:02:39]} 14. dxc5 {[%clk 0:02:24]}  Bxc5 {[%clk 0:02:40]} 15. Nf3 {[%clk 0:02:25]}  Qc7 {[%clk 0:02:26]} 16. Ne5 {[%clk 0:02:15]}  Bd6 {[%clk 0:02:25]} 17. Bb5+ {[%clk 0:02:11]}  Kf8 {[%clk 0:02:23]} 18. Nf3 {[%clk 0:02:04]}  a6 {[%clk 0:02:08]} 19. Bd3 {[%clk 0:02:04]}  Nc6 {[%clk 0:01:52]} 20. O-O {[%clk 0:02:00]}  Re8 {[%clk 0:01:52]} 21. Rfe1 {[%clk 0:02:00]}  Kg7 {[%clk 0:01:46]} 22. Rad1 {[%clk 0:01:57]}  Be7 {[%clk 0:01:36]} 23. Rc1 {[%clk 0:01:25]}  Bf6 {[%clk 0:01:34]} 24. c4 {[%clk 0:01:24]}  Qa5 {[%clk 0:01:16]} 25. a3 {[%clk 0:01:21]}  dxc4 {[%clk 0:01:07]} 26. Rxc4 {[%clk 0:01:20]}  Rd8 {[%clk 0:01:02]} 27. Be4 {[%clk 0:01:20]}  Nd4 {[%clk 0:00:55]} 28. Nxd4 {[%clk 0:01:19]}  Rxd4 {[%clk 0:00:48]} 29. Rxd4 {[%clk 0:01:13]}  Bxd4 {[%clk 0:00:49]} 30. Rd1 {[%clk 0:01:14]}  Rd8 {[%clk 0:00:41]} 31. Bxb7 {[%clk 0:00:40]}  Bxf2+ {[%clk 0:00:32]} 32. Kxf2 {[%clk 0:00:37]}  Qb6+ {[%clk 0:00:30]} 33. Kf1 {[%clk 0:00:38]}  Rxd1+ {[%clk 0:00:29]} 34. Qxd1 {[%clk 0:00:38]}  Qxb7 {[%clk 0:00:30]} 35. Qd4+ {[%clk 0:00:38]}  Kh7 {[%clk 0:00:30]} 36. Qc3 {[%clk 0:00:26]}  Qd5 {[%clk 0:00:24]} 37. Ke2 {[%clk 0:00:25]}  Qg2+ {[%clk 0:00:24]} 38. Kd1 {[%clk 0:00:26]}  Qe4 {[%clk 0:00:16]} 39. Kc1 {[%clk 0:00:25]}  Qd5 {[%clk 0:00:09]} 40. b4 {[%clk 0:00:24]}  Qa2 {[%clk 0:00:08]} 41. Kd1 {[%clk 0:00:24]}  Qb1+ {[%clk 0:00:08]} 42. Kd2 {[%clk 0:00:24]}  Qf1 {[%clk 0:00:07]} 43. Kc2 {[%clk 0:00:24]}  Qg2+ {[%clk 0:00:07]} 44. Kb3 {[%clk 0:00:24]}  Qd5+ {[%clk 0:00:07]} 45. Kb2 {[%clk 0:00:24]}  Qg2+ {[%clk 0:00:08]} 46. Kc1 {[%clk 0:00:22]}  Qf1+ {[%clk 0:00:08]} 47. Kd2 {[%clk 0:00:22]}  Qg2+ {[%clk 0:00:08]} 48. Ke1 {[%clk 0:00:22]}  Qg1+ {[%clk 0:00:08]} 49. Ke2 {[%clk 0:00:22]}  Qg2+ {[%clk 0:00:09]} 50. Kd1 {[%clk 0:00:23]}  Qf1+ {[%clk 0:00:09]} 51. Kc2 {[%clk 0:00:23]}  Qg2+ {[%clk 0:00:10]} 52. Kb3 {[%clk 0:00:21]}  Qd5+ {[%clk 0:00:10]} 53. Qc4 {[%clk 0:00:21]}  Qd1+ {[%clk 0:00:07]} 54. Ka2 {[%clk 0:00:07]}  Qd2+ {[%clk 0:00:06]} 55. Kb1 {[%clk 0:00:08]}  Qe1+ {[%clk 0:00:07]} 56. Kb2 {[%clk 0:00:08]}  Qxg3 {[%clk 0:00:06]} 57. Qxa6 {[%clk 0:00:08]}  Qxh4 {[%clk 0:00:07]} 58. b5 {[%clk 0:00:05]}  Qf2+ {[%clk 0:00:07]} 59. Kb3 {[%clk 0:00:05]}  Qe3+ {[%clk 0:00:07]} 60. Kc2 {[%clk 0:00:04]}  Qe2+ {[%clk 0:00:07]} 61. Kc3 {[%clk 0:00:05]}  h4 {[%clk 0:00:08]} 62. Qd6 {[%clk 0:00:01]}  h3 {[%clk 0:00:05]} 63. Qe7 {[%clk 0:00:02]}  Qxb5 {[%clk 0:00:04]} 64. Qh4+ {[%clk 0:00:01]}  Kg7 {[%clk 0:00:04]} 65. Qxh3 {[%clk 0:00:02]}  Qc5+ {[%clk 0:00:04]} 66. Kb2 {[%clk 0:00:02]}  Qd4+ {[%clk 0:00:04]} 67. Qc3 {[%clk 0:00:02]}  Qxc3+ {[%clk 0:00:04]} 68. Kxc3 {[%clk 0:00:03]}  Kf8 {[%clk 0:00:04]} 69. a4 {[%clk 0:00:03]}  Ke7 {[%clk 0:00:05]} 70. Kd4 {[%clk 0:00:04]}  Kd6 {[%clk 0:00:04]} 71. a5 {[%clk 0:00:04]}  f6 {[%clk 0:00:04]} 72. a6 {[%clk 0:00:04]}  Kc6 {[%clk 0:00:05]} 73. a7 {[%clk 0:00:04]}  Kb7 {[%clk 0:00:05]} 74. Kc5 {[%clk 0:00:05]}  Kxa7 {[%clk 0:00:06]} 75. Kd6 {[%clk 0:00:00]}  g5 {[%clk 0:00:06]} 0-1


[Site "https://www.chess.com"]

[Event "Titled Tuesday Blitz June 20 Early 2023"]
[White "Quesada Perez, Yuniesky"]
[Black "Makarian, Rudik"]
[WhiteFideId "3504409"]
[BlackFideId "44105681"]
[WhiteElo "2585"]
[BlackElo "2451"]
[Result "0-1"]
[Round "9"]
[TimeControl "180+2"]
[Date "2023.06.20"]
[WhiteClock "0:00:00"]
[BlackClock "0:00:04"]
[Board "17"]

1. e4 {[%clk 0:03:00]}  c5 {[%clk 0:03:00]} 2. Nf3 {[%clk 0:03:00]}  e6 {[%clk 0:03:00]} 3. d4 {[%clk 0:03:00]}  cxd4 {[%clk 0:03:01]} 4. Nxd4 {[%clk 0:03:01]}  Nc6 {[%clk 0:03:02]} 5. Nc3 {[%clk 0:03:00]}  Nf6 {[%clk 0:03:02]} 6. a3 {[%clk 0:02:55]}  Be7 {[%clk 0:03:01]} 7. Be3 {[%clk 0:02:54]}  O-O {[%clk 0:03:01]} 8. f4 {[%clk 0:02:54]}  d6 {[%clk 0:02:58]} 9. Qf3 {[%clk 0:02:51]}  Qc7 {[%clk 0:02:23]} 10. O-O-O {[%clk 0:02:44]}  Nxd4 {[%clk 0:02:23]} 11. Rxd4 {[%clk 0:02:44]}  e5 {[%clk 0:02:23]} 12. Rd2 {[%clk 0:02:30]}  a6 {[%clk 0:02:21]} 13. f5 {[%clk 0:02:26]}  b5 {[%clk 0:02:05]} 14. g4 {[%clk 0:02:24]}  b4 {[%clk 0:02:02]} 15. axb4 {[%clk 0:02:22]}  a5 {[%clk 0:02:03]} 16. b5 {[%clk 0:02:22]}  a4 {[%clk 0:02:03]} 17. b6 {[%clk 0:02:20]}  Qb7 {[%clk 0:01:52]} 18. g5 {[%clk 0:01:20]}  a3 {[%clk 0:01:51]} 19. bxa3 {[%clk 0:01:18]}  Rxa3 {[%clk 0:01:16]} 20. gxf6 {[%clk 0:01:18]}  Ra1+ {[%clk 0:01:12]} 21. Kb2 {[%clk 0:00:47]}  Qa8 {[%clk 0:01:12]} 22. Ba6 {[%clk 0:00:47]}  Rxa6 {[%clk 0:00:37]} 23. fxe7 {[%clk 0:00:46]}  Re8 {[%clk 0:00:38]} 24. Rg1 {[%clk 0:00:37]}  Qc6 {[%clk 0:00:34]} 25. Qg3 {[%clk 0:00:12]}  g6 {[%clk 0:00:32]} 26. fxg6 {[%clk 0:00:12]}  hxg6 {[%clk 0:00:31]} 27. Rf2 {[%clk 0:00:10]}  Be6 {[%clk 0:00:14]} 28. Rf6 {[%clk 0:00:10]}  Rxb6+ {[%clk 0:00:08]} 29. Bxb6 {[%clk 0:00:09]}  Qxb6+ {[%clk 0:00:08]} 30. Kc1 {[%clk 0:00:10]}  Rxe7 {[%clk 0:00:06]} 31. Qh4 {[%clk 0:00:07]}  Qxg1+ {[%clk 0:00:04]} 32. Kd2 {[%clk 0:00:00]}  Qd4+ {[%clk 0:00:04]} 0-1


[Site "https://www.chess.com"]

[Event "Titled Tuesday Blitz June 20 Early 2023"]
[White "Zhigalko, Sergei"]
[Black "Mendonca, Leon Luke"]
[WhiteFideId "13502956"]
[BlackFideId "35028561"]
[WhiteElo "2626"]
[BlackElo "2464"]
[Result "1-0"]
[Round "9"]
[TimeControl "180+2"]
[Date "2023.06.20"]
[WhiteClock "0:00:06"]
[BlackClock "0:00:04"]
[Board "18"]

1. e4 {[%clk 0:03:00]}  Nf6 {[%clk 0:02:57]} 2. e5 {[%clk 0:03:01]}  Ng8 {[%clk 0:02:58]} 3. Nf3 {[%clk 0:03:01]}  d6 {[%clk 0:02:58]} 4. d4 {[%clk 0:03:01]}  Bg4 {[%clk 0:02:58]} 5. h3 {[%clk 0:03:00]}  Bh5 {[%clk 0:02:58]} 6. e6 {[%clk 0:02:50]}  fxe6 {[%clk 0:02:53]} 7. Be2 {[%clk 0:02:50]}  Nf6 {[%clk 0:02:13]} 8. Ng5 {[%clk 0:02:46]}  Bf7 {[%clk 0:02:06]} 9. O-O {[%clk 0:02:33]}  Nc6 {[%clk 0:02:02]} 10. Re1 {[%clk 0:02:29]}  g6 {[%clk 0:01:49]} 11. Bc4 {[%clk 0:02:23]}  d5 {[%clk 0:01:46]} 12. Bb5 {[%clk 0:02:23]}  Qd6 {[%clk 0:01:37]} 13. Nd2 {[%clk 0:01:59]}  Bh6 {[%clk 0:01:07]} 14. Nxf7 {[%clk 0:01:36]}  Kxf7 {[%clk 0:01:05]} 15. Nf3 {[%clk 0:01:37]}  Bxc1 {[%clk 0:00:35]} 16. Qxc1 {[%clk 0:01:38]}  Kg7 {[%clk 0:00:19]} 17. Bxc6 {[%clk 0:01:07]}  Qxc6 {[%clk 0:00:18]} 18. c3 {[%clk 0:00:58]}  Rhf8 {[%clk 0:00:15]} 19. Re2 {[%clk 0:00:39]}  Ne4 {[%clk 0:00:15]} 20. Ne5 {[%clk 0:00:39]}  Qd6 {[%clk 0:00:14]} 21. Qe3 {[%clk 0:00:19]}  c5 {[%clk 0:00:14]} 22. Rae1 {[%clk 0:00:18]}  Rac8 {[%clk 0:00:06]} 23. Nd3 {[%clk 0:00:09]}  b6 {[%clk 0:00:02]} 24. Ne5 {[%clk 0:00:03]}  Rf5 {[%clk 0:00:02]} 25. Ng4 {[%clk 0:00:03]}  h5 {[%clk 0:00:02]} 26. Qh6+ {[%clk 0:00:03]}  Kf7 {[%clk 0:00:01]} 27. Ne5+ {[%clk 0:00:03]}  Ke8 {[%clk 0:00:01]} 28. Qxg6+ {[%clk 0:00:03]}  Kd8 {[%clk 0:00:01]} 29. Qxf5 {[%clk 0:00:03]}  exf5 {[%clk 0:00:01]} 30. Nf7+ {[%clk 0:00:03]}  Kd7 {[%clk 0:00:02]} 31. Nxd6 {[%clk 0:00:04]}  exd6 {[%clk 0:00:02]} 32. f3 {[%clk 0:00:04]}  Ng3 {[%clk 0:00:01]} 33. Re7+ {[%clk 0:00:04]}  Kc6 {[%clk 0:00:02]} 34. Rxa7 {[%clk 0:00:05]}  f4 {[%clk 0:00:02]} 35. Kf2 {[%clk 0:00:03]}  Nf5 {[%clk 0:00:02]} 36. dxc5 {[%clk 0:00:04]}  dxc5 {[%clk 0:00:02]} 37. Re6+ {[%clk 0:00:04]}  Kb5 {[%clk 0:00:02]} 38. Rb7 {[%clk 0:00:04]}  Kc4 {[%clk 0:00:02]} 39. Rbxb6 {[%clk 0:00:04]}  Ne3 {[%clk 0:00:03]} 40. Rxe3 {[%clk 0:00:04]}  fxe3+ {[%clk 0:00:03]} 41. Kxe3 {[%clk 0:00:05]}  Re8+ {[%clk 0:00:03]} 42. Kd2 {[%clk 0:00:05]}  h4 {[%clk 0:00:04]} 43. b3# {[%clk 0:00:06]} 1-0


[Site "https://www.chess.com"]

[Event "Titled Tuesday Blitz June 20 Early 2023"]
[White "Zemlyanskii, Ivan"]
[Black "Jones, Gawain C B"]
[WhiteFideId "24249971"]
[BlackFideId "409561"]
[WhiteElo "2421"]
[BlackElo "2645"]
[Result "0-1"]
[Round "9"]
[TimeControl "180+2"]
[Date "2023.06.20"]
[WhiteClock "0:00:00"]
[BlackClock "0:00:04"]
[Board "19"]

1. d4 {[%clk 0:03:00]}  Nf6 {[%clk 0:02:58]} 2. c4 {[%clk 0:03:00]}  g6 {[%clk 0:02:58]} 3. h4 {[%clk 0:02:59]}  c5 {[%clk 0:02:57]} 4. d5 {[%clk 0:02:59]}  b5 {[%clk 0:02:57]} 5. cxb5 {[%clk 0:03:00]}  a6 {[%clk 0:02:57]} 6. e3 {[%clk 0:03:00]}  Bg7 {[%clk 0:02:46]} 7. Nc3 {[%clk 0:02:59]}  d6 {[%clk 0:02:42]} 8. a4 {[%clk 0:02:57]}  O-O {[%clk 0:02:34]} 9. Nf3 {[%clk 0:02:56]}  e6 {[%clk 0:02:29]} 10. dxe6 {[%clk 0:02:08]}  Bxe6 {[%clk 0:02:28]} 11. e4 {[%clk 0:02:06]}  d5 {[%clk 0:02:21]} 12. e5 {[%clk 0:01:50]}  Ng4 {[%clk 0:02:14]} 13. Bf4 {[%clk 0:01:47]}  Nd7 {[%clk 0:01:56]} 14. Nxd5 {[%clk 0:01:30]}  Ndxe5 {[%clk 0:01:56]} 15. Nxe5 {[%clk 0:01:29]}  Nxe5 {[%clk 0:01:52]} 16. Ne3 {[%clk 0:01:17]}  Qa5+ {[%clk 0:01:38]} 17. Qd2 {[%clk 0:01:13]}  axb5 {[%clk 0:01:39]} 18. Bxe5 {[%clk 0:00:53]}  Bxe5 {[%clk 0:01:32]} 19. Qxa5 {[%clk 0:00:47]}  Rxa5 {[%clk 0:01:32]} 20. Bxb5 {[%clk 0:00:48]}  Bxb2 {[%clk 0:01:28]} 21. Rb1 {[%clk 0:00:47]}  Bd4 {[%clk 0:01:13]} 22. Ke2 {[%clk 0:00:40]}  Kg7 {[%clk 0:01:10]} 23. Rhd1 {[%clk 0:00:36]}  Rc8 {[%clk 0:00:58]} 24. Rbc1 {[%clk 0:00:25]}  Ra7 {[%clk 0:00:35]} 25. Nc4 {[%clk 0:00:25]}  Bg4+ {[%clk 0:00:34]} 26. f3 {[%clk 0:00:24]}  Re7+ {[%clk 0:00:34]} 27. Kf1 {[%clk 0:00:25]}  Be6 {[%clk 0:00:28]} 28. Nd6 {[%clk 0:00:18]}  Rb8 {[%clk 0:00:19]} 29. Ne4 {[%clk 0:00:18]}  Be3 {[%clk 0:00:16]} 30. Rc3 {[%clk 0:00:17]}  Bd4 {[%clk 0:00:17]} 31. Rcc1 {[%clk 0:00:18]}  Rc8 {[%clk 0:00:09]} 32. Nd6 {[%clk 0:00:17]}  Ra8 {[%clk 0:00:05]} 33. Ne4 {[%clk 0:00:11]}  Bb3 {[%clk 0:00:05]} 34. Rd2 {[%clk 0:00:08]}  Be3 {[%clk 0:00:05]} 35. Rb2 {[%clk 0:00:06]}  Bxa4 {[%clk 0:00:04]} 36. Re1 {[%clk 0:00:05]}  Bd4 {[%clk 0:00:04]} 37. Rbb1 {[%clk 0:00:04]}  Rb7 {[%clk 0:00:02]} 38. Bc4 {[%clk 0:00:02]}  Rxb1 {[%clk 0:00:03]} 39. Rxb1 {[%clk 0:00:03]}  Bc6 {[%clk 0:00:03]} 40. Nd6 {[%clk 0:00:03]}  Ra4 {[%clk 0:00:03]} 41. Bxf7 {[%clk 0:00:02]}  Be5 {[%clk 0:00:03]} 42. Be8 {[%clk 0:00:03]}  Bxe8 {[%clk 0:00:02]} 43. Nxe8+ {[%clk 0:00:04]}  Kf8 {[%clk 0:00:03]} 44. Re1 {[%clk 0:00:05]}  Ra1 {[%clk 0:00:02]} 45. Rxa1 {[%clk 0:00:04]}  Bxa1 {[%clk 0:00:03]} 46. Nd6 {[%clk 0:00:05]}  Ke7 {[%clk 0:00:03]} 47. Nc4 {[%clk 0:00:05]}  Bf6 {[%clk 0:00:03]} 48. g3 {[%clk 0:00:04]}  Ke6 {[%clk 0:00:04]} 49. Ke2 {[%clk 0:00:05]}  Kd5 {[%clk 0:00:04]} 50. Kd3 {[%clk 0:00:06]}  Bd4 {[%clk 0:00:04]} 51. Nb6+ {[%clk 0:00:06]}  Kc6 {[%clk 0:00:04]} 52. Nc4 {[%clk 0:00:07]}  Kd5 {[%clk 0:00:03]} 53. Nb6+ {[%clk 0:00:07]}  Ke6 {[%clk 0:00:04]} 54. Ke4 {[%clk 0:00:06]}  Bf2 {[%clk 0:00:04]} 55. Nc4 {[%clk 0:00:07]}  Bxg3 {[%clk 0:00:04]} 56. Nd2 {[%clk 0:00:04]}  Bxh4 {[%clk 0:00:04]} 57. f4 {[%clk 0:00:02]}  Bf6 {[%clk 0:00:03]} 58. Nc4 {[%clk 0:00:02]}  h5 {[%clk 0:00:02]} 59. Ne3 {[%clk 0:00:02]}  Bd4 {[%clk 0:00:02]} 60. Ng2 {[%clk 0:00:02]}  Kf6 {[%clk 0:00:02]} 61. Nh4 {[%clk 0:00:02]}  Bf2 {[%clk 0:00:02]} 62. Ng2 {[%clk 0:00:02]}  h4 {[%clk 0:00:02]} 63. Kf3 {[%clk 0:00:03]}  h3 {[%clk 0:00:03]} 64. Ne3 {[%clk 0:00:01]}  Bxe3 {[%clk 0:00:03]} 65. Kxe3 {[%clk 0:00:01]}  h2 {[%clk 0:00:03]} 66. Kf2 {[%clk 0:00:00]}  h1=Q {[%clk 0:00:04]} 0-1


[Site "https://www.chess.com"]